bitfinex/quotes_SOLUSD_20240930
["timestamp","ask_amount","ask_price","bid_price","bid_amount"]
[1727708444860,6.3813,156.71,156.65,6.3833]
[1727708445188,6.381,156.72,156.67,15.4821]
[1727708445351,6.3802,156.74,156.68,7.6584691]
[1727708445687,6.3802,156.74,156.67,15.4821]
[1727708445688,6.382,156.69,156.67,15.4821]
[1727708446378,6.3823,156.69,156.67,16.75841065]
[1727708446566,15.9506,156.74,156.67,15.4821]
[1727708446567,6.3824,156.68,156.67,15.4821]
[1727708446757,6.382,156.69,156.67,15.4821]
[1727708448375,6.3817,156.7,156.67,16.75850646]
[1727708448691,15.9506,156.74,156.64,1.2364327]
[1727708448983,6.3824,156.68,156.65,1.27647831]
[1727708449278,6.3824,156.68,156.64,1.2364327]
[1727708449581,1.5876074,156.73,156.64,1.2364327]
[1727708449884,6.3835,156.66,156.64,1.2364327]
[1727708450871,6.3836,156.65,156.64,1.2364327]
[1727708455282,1.5876074,156.67,156.55,21.3435]
[1727708455573,6.3865,156.59,156.55,21.3435]
[1727708455790,6.3865,156.58,156.55,21.3435]
[1727708455986,6.3861,156.59,156.55,21.3435]
[1727708457970,15.9604,156.64,156.56,1.27728318]
[1727708458175,6.3857,156.6,156.55,21.3435]
[1727708458363,1.5876074,156.59,156.51,15.7508]
[1727708458567,6.3869,156.57,156.52,6.3886]
[1727708458958,6.3869,156.57,156.53,1.27745577]
[1727708459160,6.3869,156.57,156.52,6.3886]
[1727708460384,5.68163594,156.65,156.53,1.27729193]
[1727708460385,15.9597,156.65,156.53,1.27729193]
[1727708460569,6.3854,156.61,156.56,6.3869]
[1727708460883,6.3854,156.61,156.55,6.3876]
[1727708461469,6.3854,156.61,156.57,16.1609]
[1727708461789,6.3849,156.62,156.57,22.5477]
[1727708461967,22.092,156.68,156.57,22.409]
[1727708462161,6.3841,156.64,156.57,22.409]
[1727708462369,15.9565,156.68,156.58,15.9657]
[1727708462569,15.9565,156.68,156.57,22.409]
[1727708462570,1.5876074,156.69,156.59,16.04556742]
[1727708462766,47.8516,156.74,156.63,6.3844]
[1727708462967,47.8516,156.74,156.61,16.0531]
[1727708462968,6.382,156.69,156.64,6.384]
[1727708463859,12.94504921,156.76,156.65,1.2765215]
[1727708464065,6.3811,156.72,156.65,6.0758]
[1727708464257,6.3811,156.72,156.66,6.3828]
[1727708464478,6.3804,156.73,156.65,6.0758]
[1727708464685,6.3804,156.73,156.68,6.3824]
[1727708464888,6.3804,156.73,156.68,7.65863019]
[1727708465282,1.10848752,156.77,156.68,1.27623019]
[1727708465584,6.3789,156.77,156.71,6.381]
[1727708465795,6.3783,156.78,156.72,7.65630304]
[1727708465984,7.89724007,156.8,156.75,6.3792]
[1727708466165,7.89724007,156.8,156.76,15.9421]
[1727708466370,7.89724007,156.8,156.77,1.27557079]
[1727708466566,7.89724007,156.8,156.77,6.3786]
[1727708467286,7.89724007,156.8,156.76,15.9421]
[1727708469165,14.27474007,156.8,156.76,15.9421]
[1727708469394,6.3783,156.78,156.76,15.9421]
[1727708469593,7.9656074,156.79,156.76,15.9421]
[1727708469766,6.3784,156.78,156.76,15.9421]
[1727708469974,1.5876074,156.78,156.71,15.4727]
[1727708470292,6.3796,156.75,156.71,15.4727]
[1727708470679,6.38,156.74,156.71,15.4727]
[1727708472172,1.5876074,156.78,156.71,15.4727]
[1727708472372,6.3804,156.73,156.71,15.4727]
[1727708473365,6.3809,156.72,156.66,28.3649]
[1727708473565,6.3809,156.72,156.66,43.7367]
[1727708474087,6.3812,156.71,156.66,21.3963]
[1727708474394,1.5876074,156.75,156.66,21.3963]
[1727708474693,6.3817,156.7,156.66,21.3963]
[1727708474885,6.3817,156.7,156.66,15.3718]
[1727708476771,15.9488,156.76,156.66,15.3718]
[1727708476972,6.38,156.74,156.68,6.3824]
[1727708477275,6.3799,156.75,156.69,6.3819]
[1727708477469,6.3801,156.74,156.67,22.3385]
[1727708477667,6.3801,156.74,156.68,6.3823]
[1727708477987,6.3796,156.75,156.69,6.3819]
[1727708478172,6.3796,156.75,156.7,1.2760187]
[1727708478367,6.3796,156.75,156.69,6.3819]
[1727708480292,6.3792,156.76,156.69,6.3819]
[1727708480477,6.3792,156.76,156.7,6.3815]
[1727708480672,6.3788,156.77,156.7,6.3815]
[1727708480890,6.3788,156.77,156.71,6.3811]
[1727708482780,6.62541006,156.83,156.69,15.9544]
[1727708483099,6.62541006,156.83,156.71,6.3811]
[1727708483100,6.3787,156.77,156.71,6.3811]
[1727708483276,6.3784,156.78,156.72,21.6629]
[1727708484193,6.3784,156.78,156.72,15.2823]
[1727708485000,6.3787,156.77,156.72,15.2823]
[1727708485382,6.3783,156.78,156.72,21.663]
[1727708487088,1.10775982,156.81,156.72,21.663]
[1727708487089,6.378,156.79,156.73,6.3803]
[1727708488190,1.5876074,156.82,156.72,15.2823]
[1727708488500,6.379,156.77,156.72,15.2823]
[1727708488680,6.3793,156.76,156.72,15.2823]
[1727708489090,6.38,156.74,156.72,15.2823]
[1727708492903,1.5876074,156.78,156.68,22.1993]
[1727708493082,6.3815,156.71,156.68,22.1993]
[1727708493412,6.3817,156.7,156.68,15.8012]
[1727708494098,6.3812,156.71,156.68,15.8012]
[1727708496586,6.3808,156.72,156.68,15.8012]
[1727708497992,6.3812,156.71,156.68,15.8012]
[1727708498801,1.5876074,156.74,156.68,15.8012]
[1727708499007,6.3819,156.7,156.68,15.8012]
[1727708499309,33.4876074,156.74,156.64,21.4183]
[1727708499482,6.3836,156.65,156.64,15.2034]
[1727708499893,1.5876074,156.7,156.64,15.2034]
[1727708500098,6.3832,156.67,156.64,15.2034]
[1727708500487,6.3824,156.68,156.64,15.2034]
[1727708501414,6.3821,156.69,156.64,15.2034]
[1727708506093,6.3815,156.71,156.65,7.65969078]
[1727708506293,6.3816,156.7,156.65,6.3833]
[1727708506491,6.3812,156.71,156.65,6.3833]
[1727708506697,6.3812,156.71,156.66,1.27625052]
[1727708506898,273.29,156.84,156.66,6.3828]
[1727708506899,6.3808,156.72,156.66,6.3828]
[1727708507213,6.3808,156.72,156.67,6.3111]
[1727708507521,15.9476,156.77,156.67,6.3111]
[1727708507708,15.9476,156.77,156.67,22.2679]
[1727708507918,6.3802,156.74,156.68,6.3821]
[1727708508364,1.10795889,156.78,156.69,15.9546]
[1727708508544,22.56969556,156.8,156.7,6.3815]
[1727708508724,6.3795,156.75,156.7,6.3815]
[1727708508926,6.3788,156.77,156.71,1.27588564]
[1727708509129,6.3788,156.77,156.69,15.9546]
[1727708509345,6.3788,156.77,156.71,6.3811]
[1727708509666,6.3793,156.76,156.69,22.3363]
[1727708509825,1.5876074,156.79,156.69,22.3363]
[1727708509826,6.3799,156.75,156.69,22.3363]
[1727708510149,6.38,156.74,156.69,15.9546]
[1727708510344,6.3805,156.73,156.68,22.1856]
[1727708510646,6.3812,156.71,156.68,15.8032]
[1727708511937,6.3809,156.72,156.68,15.8032]
[1727708512754,6.3805,156.73,156.68,15.8032]
[1727708512933,6.3801,156.74,156.69,7.65803653]
[1727708513134,15.9454,156.79,156.69,6.3819]
[1727708513135,6.3798,156.75,156.69,6.3819]
[1727708513446,6.3792,156.76,156.7,6.3815]
[1727708513647,6.3797,156.75,156.7,6.3815]
[1727708515241,6.3797,156.75,156.69,6.3817]
[1727708515756,6.3797,156.75,156.7,6.3814]
[1727708516856,6.38,156.74,156.69,6.3819]
[1727708519139,806.3796,156.75,156.69,6.3819]
[1727708520541,806.3796,156.75,156.68,47.78706124]
[1727708520733,800.0,156.75,156.7,6.3816]
[1727708520932,806.3796,156.75,156.7,6.3816]
[1727708522127,6.3801,156.74,156.69,6.3819]
[1727708522551,6.3804,156.73,156.68,38.1409]
[1727708523050,1.5876074,156.74,156.68,38.1409]
[1727708523051,1.5876074,156.74,156.68,31.7586]
[1727708523252,6.3808,156.72,156.68,15.8032]
[1727708523454,6.3818,156.7,156.68,15.8032]
[1727708523759,6.382,156.69,156.68,15.8032]
[1727708523930,6.3825,156.68,156.64,16.2172]
[1727708525456,1.5876074,156.72,156.64,16.2172]
[1727708525661,6.3832,156.67,156.64,16.2172]
[1727708526754,6.3833,156.66,156.64,16.2172]
[1727708527131,6.3836,156.65,156.6,16.4032]
[1727708527529,6.3833,156.66,156.6,22.7885]
[1727708527740,6.3833,156.66,156.61,6.3852]
[1727708528045,6.3827,156.68,156.62,6.3848]
[1727708528840,6.3827,156.68,156.63,6.3844]
[1727708529040,15.9536,156.71,156.61,15.9626]
[1727708529239,15.9536,156.71,156.6,32.43166124]
[1727708529240,23.68583556,156.74,156.62,17.30492405]
[1727708529532,6.3813,156.71,156.65,6.3836]
[1727708530101,800.0,156.75,156.65,15.9584]
[1727708530406,6.3804,156.73,156.68,6.3823]
[1727708530604,6.3804,156.73,156.69,1.27610534]
[1727708530923,6.3804,156.73,156.68,6.3823]
[1727708531308,6.3804,156.73,156.67,6.3827]
[1727708532000,6.3804,156.73,156.66,16.02846124]
[1727708532200,800.0,156.75,156.69,6.3816]
[1727708532625,800.0,156.75,156.7,6.3812]
[1727708532808,800.0,156.75,156.7,6.3815]
[1727708533529,800.0,156.75,156.71,6.2229]
[1727708533725,800.0,156.75,156.71,22.1751]
[1727708534023,800.0,156.75,156.74,6.3799]
[1727708534800,800.0,156.75,156.71,22.1751]
[1727708535707,800.0,156.75,156.74,6.3799]
[1727708536319,800.0,156.75,156.74,38.77466124]
[1727708537135,800.0,156.75,156.74,22.7462]
[1727708537908,800.0,156.75,156.74,38.77466124]
[1727708541417,800.0,156.75,156.74,22.7462]
[1727708542231,800.0,156.75,156.74,38.77466124]
[1727708544217,800.0,156.75,156.74,22.7462]
[1727708544736,800.0,156.75,156.74,16.3663]
[1727708544919,800.0,156.75,156.71,6.2229]
[1727708545113,6.38,156.74,156.7,32.4599]
[1727708546017,6.38,156.74,156.7,16.5065]
[1727708547533,800.0,156.75,156.7,16.5065]
[1727708547742,6.3801,156.74,156.7,16.5065]
[1727708550624,6.3806,156.73,156.68,6.3823]
[1727708550824,1.5876074,156.74,156.67,15.9567]
[1727708552039,806.3798,156.75,156.7,6.3816]
[1727708552547,6.38,156.74,156.69,15.9546]
[1727708552744,6.38,156.74,156.69,22.3365]
[1727708555625,806.3797,156.75,156.7,6.3815]
[1727708556420,6.38,156.74,156.7,6.3815]
[1727708556836,806.3796,156.75,156.7,6.3815]
[1727708557039,800.0,156.75,156.71,6.3811]
[1727708557237,800.0,156.75,156.73,6.3802]
[1727708558122,800.0,156.75,156.74,6.3799]
[1727708558320,800.0,156.75,156.74,22.5526]
[1727708559459,686.90987344,156.75,156.74,39.85672851]
[1727708559625,686.90987344,156.75,156.74,38.58106124]
[1727708562325,590.48634688,156.75,156.74,38.58106124]
[1727708565035,577.83853252,156.75,156.74,38.58106124]
[1727708565328,481.41500596,156.75,156.74,38.58106124]
[1727708566834,419.91280596,156.75,156.74,44.78026124]
[1727708567153,385.08950596,156.75,156.74,44.78026124]
[1727708567454,378.38410596,156.75,156.74,44.78026124]
[1727708567654,351.1428916,156.75,156.74,44.78026124]
[1727708567952,344.2813916,156.75,156.74,44.78026124]
[1727708568165,260.5056794,156.75,156.74,44.78026124]
[1727708570058,260.5056794,156.75,156.74,28.60756124]
[1727708572349,260.5056794,156.75,156.74,6.3799]
[1727708582347,260.5056794,156.75,156.73,15.9505]
[1727708582548,260.5056794,156.75,156.7,15.9533]
[1727708582739,260.5056794,156.75,156.72,6.3807]
[1727708582949,276.6689794,156.75,156.7,15.9533]
[1727708583149,276.6689794,156.75,156.71,6.381]
[1727708583379,283.0486794,156.75,156.71,6.381]
[1727708583942,276.6689794,156.75,156.72,15.9516]
[1727708584661,276.6689794,156.75,156.73,6.3803]
[1727708586068,276.6689794,156.75,156.74,6.3799]
[1727708587967,260.5056794,156.75,156.74,6.3799]
[1727708588667,260.5056794,156.75,156.74,7.65553937]
[1727708588843,260.5056794,156.75,156.74,6.3799]
[1727708589043,260.5056794,156.75,156.74,22.40836124]
[1727708589959,164.08215284,156.75,156.74,22.40836124]
[1727708590359,164.08215284,156.75,156.74,52.40836124]
[1727708590562,164.08215284,156.75,156.74,22.40836124]
[1727708591455,164.08215284,156.75,156.74,52.40836124]
[1727708594960,164.08215284,156.75,156.74,36.3799]
[1727708596179,164.08215284,156.75,156.74,52.40836124]
[1727708596554,67.65862628,156.75,156.74,52.40836124]
[1727708597547,67.65862628,156.75,156.74,53.68390022]
[1727708597769,46.17581192,156.75,156.74,59.02380836]
[1727708597970,46.17581192,156.75,156.74,30.29922972]
[1727708597971,1.192e-05,156.75,156.74,30.29922972]
[1727708598182,1.192e-05,156.75,156.74,22.40836124]
[1727708598355,15.2892,156.88,156.85,6.3751]
[1727708599474,15.2892,156.88,156.84,15.9389]
[1727708599664,15.2892,156.88,156.84,22.3146]
[1727708600165,15.2892,156.88,156.85,6.3754]
[1727708600669,6.3748,156.87,156.81,47.8275]
[1727708600860,6.3755,156.85,156.82,30.0]
[1727708601387,6.376,156.84,156.82,30.0]
[1727708602062,16.2886,156.81,156.78,22.3234]
[1727708602373,16.2886,156.81,156.79,30.0]
[1727708602951,16.2886,156.81,156.8,6.3775]
[1727708608563,16.2886,156.81,156.78,15.9452]
[1727708609059,22.6657,156.81,156.77,6.3786]
[1727708609275,16.2886,156.81,156.78,6.3783]
[1727708610291,16.2886,156.81,156.77,22.3251]
[1727708610582,6.3776,156.8,156.76,6.3789]
[1727708610758,16.2886,156.81,156.75,6.3795]
[1727708610759,6.3779,156.79,156.75,6.3795]
[1727708613286,6.3776,156.8,156.75,6.3795]
[1727708615566,6.3779,156.79,156.75,6.3795]
[1727708615979,6.3784,156.78,156.74,22.3291]
[1727708616482,17.8762074,156.81,156.71,38.54021159]
[1727708616483,22.6658,156.81,156.77,6.3784]
[1727708616682,22.6658,156.81,156.78,1.2754192]
[1727708617292,22.6658,156.81,156.77,6.3784]
[1727708618371,16.2886,156.81,156.77,6.3784]
[1727708619184,16.2886,156.81,156.76,15.9476]
[1727708619369,16.2886,156.81,156.78,6.3782]
[1727708622594,16.2886,156.81,156.78,15.9456]
[1727708622891,16.2886,156.81,156.8,6.3775]
[1727708624572,6.3756,156.85,156.8,6.3775]
[1727708624573,15.8415,156.85,156.82,6.3767]
[1727708624976,15.8415,156.85,156.77,47.92026124]
[1727708625194,15.8415,156.85,156.84,6.3759]
[1727708626071,6.3739,156.89,156.85,6.3754]
[1727708626287,21.9277,156.89,156.85,6.3754]
[1727708628474,21.9277,156.89,156.84,6.3758]
[1727708628697,15.5538,156.89,156.84,6.3758]
[1727708628884,6.3743,156.88,156.84,6.3758]
[1727708629075,6.3747,156.87,156.83,6.3762]
[1727708629793,15.5538,156.89,156.84,6.3757]
[1727708629794,6.3743,156.88,156.84,6.3757]
[1727708629975,21.9277,156.89,156.85,7.65032385]
[1727708631581,15.5538,156.89,156.86,6.375]
[1727708631980,15.5538,156.89,156.84,15.9394]
[1727708632189,15.5538,156.89,156.85,6.3754]
[1727708633095,6.3743,156.88,156.84,22.3152]
[1727708633270,6.3743,156.88,156.85,30.0]
[1727708633998,15.5538,156.89,156.86,6.375]
[1727708634799,15.5538,156.89,156.86,15.9374]
[1727708634986,15.9282,156.96,156.88,6.3742]
[1727708634987,6.3729,156.92,156.88,6.3742]
[1727708635293,15.0785,156.93,156.88,6.3742]
[1727708635294,21.4508,156.93,156.89,6.3738]
[1727708637475,21.4508,156.93,156.88,22.3095]
[1727708638292,6.3727,156.92,156.88,22.3095]
[1727708639292,15.0785,156.93,156.88,22.3095]
[1727708639293,15.0785,156.93,156.89,1.27447069]
[1727708639485,21.4509,156.93,156.89,1.27447069]
[1727708639679,21.4509,156.93,156.88,22.3095]
[1727708640282,15.0785,156.93,156.91,6.3728]
[1727708640506,15.0785,156.93,156.9,15.9335]
[1727708641285,15.0785,156.93,156.91,6.373]
[1727708641694,15.0785,156.93,156.9,22.3068]
[1727708641901,21.4511,156.93,156.87,15.9363]
[1727708642397,15.0785,156.93,156.88,30.0]
[1727708642605,6.3738,156.89,156.85,6.3754]
[1727708642795,6.3743,156.88,156.84,22.3147]
[1727708643302,1.5876074,156.92,156.85,30.0]
[1727708643483,6.3706,156.97,156.93,6.3722]
[1727708643684,6.3717,156.95,156.9,22.3065]
[1727708644397,6.3721,156.94,156.91,30.0]
[1727708644804,6.3721,156.94,156.9,22.3064]
[1727708645300,6.3714,156.95,156.91,6.3728]
[1727708645799,6.3711,156.96,156.92,6.3726]
[1727708647578,1.5876074,156.95,156.9,15.9332]
[1727708647910,6.3718,156.94,156.9,22.3066]
[1727708648095,1.5876074,156.97,156.89,6.3738]
[1727708648096,6.3723,156.93,156.89,6.3738]
[1727708648416,1.5876074,156.97,156.85,31.8771]
[1727708648417,6.3727,156.92,156.88,6.3741]
[1727708648983,15.929,156.95,156.86,6.375]
[1727708649286,15.929,156.95,156.84,22.5462]
[1727708649287,6.3735,156.9,156.85,6.3751]
[1727708650707,6.3739,156.89,156.84,15.939]
[1727708650895,6.3739,156.89,156.84,22.3148]
[1727708651904,1.5876074,156.92,156.84,15.939]
[1727708652107,1.5876074,156.92,156.8,6.5901]
[1727708652108,6.375,156.87,156.82,6.3766]
[1727708653115,6.3752,156.86,156.81,22.3197]
[1727708653482,6.3752,156.86,156.81,15.9426]
[1727708653684,6.3748,156.87,156.82,6.3767]
[1727708653998,6.3748,156.87,156.81,15.9426]
[1727708654197,31.253,156.91,156.78,22.66141721]
[1727708654395,6.3739,156.89,156.84,6.3755]
[1727708655288,6.3737,156.9,156.85,6.3751]
[1727708657103,6.3739,156.89,156.85,6.3751]
[1727708658093,6.3736,156.9,156.85,6.3751]
[1727708659798,6.3741,156.89,156.85,6.3751]
[1727708661011,6.3736,156.9,156.86,6.3751]
[1727708661318,21.6931,156.91,156.86,7.64992403]
[1727708661520,21.6931,156.91,156.89,6.3738]
[1727708661521,15.3199,156.91,156.89,6.3738]
[1727708662026,6.3719,156.94,156.87,1.2747111]
[1727708662230,16.2626,156.95,156.91,6.373]
[1727708662402,16.2626,156.95,156.92,1.27432262]
[1727708662597,16.2626,156.95,156.92,7.64682262]
[1727708662997,16.2626,156.95,156.89,15.9343]
[1727708663217,16.2626,156.95,156.91,6.3729]
[1727708663918,22.6341,156.95,156.91,6.3729]
[1727708664221,22.6341,156.95,156.86,16.02846124]
[1727708664222,16.2626,156.95,156.92,7.64693478]
[1727708664421,16.2626,156.95,156.93,0.96177398]
[1727708665128,6.3706,156.97,156.93,0.96177398]
[1727708665935,6.3706,156.97,156.92,6.3726]
[1727708669526,6.371,156.96,156.92,6.3726]
[1727708670104,6.3715,156.95,156.91,22.3052]
[1727708670326,1.5876074,156.98,156.9,6.3734]
[1727708670327,6.3718,156.94,156.9,6.3734]
[1727708670624,1.5876074,156.98,156.91,1.27440474]
[1727708670625,15.9259,156.98,156.91,1.27440474]
[1727708670926,6.3715,156.95,156.91,1.27440474]
[1727708671111,6.3715,156.95,156.91,7.64740474]
[1727708671310,6.3715,156.95,156.91,6.373]
[1727708671515,6.3713,156.96,156.9,15.9332]
[1727708671705,6.3713,156.96,156.91,1.27423318]
[1727708671903,6.3706,156.97,156.92,15.9313]
[1727708672722,6.3706,156.97,156.93,6.3721]
[1727708672922,6.3706,156.97,156.88,54.22466124]
[1727708672923,6.3717,156.95,156.91,6.3729]
[1727708673112,6.3717,156.95,156.92,1.27431376]
[1727708675421,6.3717,156.95,156.89,15.934]
[1727708675422,6.3717,156.95,156.9,7.64740953]
[1727708675600,6.3717,156.95,156.91,6.3728]
[1727708676603,6.3719,156.94,156.9,6.3733]
[1727708678125,6.3715,156.95,156.91,7.64729506]
[1727708678526,6.3715,156.95,156.91,6.373]
[1727708680226,6.3711,156.96,156.92,6.3724]
[1727708680422,15.9145,156.99,156.94,10.2288946]
[1727708680634,15.9145,156.99,156.95,1.2740497]
[1727708681512,22.2844,156.99,156.94,16.6005946]
[1727708681906,15.9145,156.99,156.95,6.3713]
[1727708682432,22.2844,156.99,156.94,16.6005946]
[1727708682610,22.2844,156.99,156.94,6.3717]
[1727708682806,15.7497,157.03,156.95,6.3713]
[1727708683028,6.3691,157.01,156.96,11.50272168]
[1727708683319,15.7497,157.03,156.95,6.3714]
[1727708683525,6.3695,157.0,156.94,16.6006946]
[1727708683737,6.3702,156.98,156.93,22.3024]
[1727708684233,6.3702,156.98,156.93,15.9303]
[1727708684410,6.3702,156.98,156.93,22.3023]
[1727708685024,6.3698,156.99,156.94,16.6005946]
[1727708685212,6.3694,157.0,156.95,6.3711]
[1727708685413,6.3694,157.0,156.96,16.5998946]
[1727708686517,6.3694,157.0,156.93,15.9303]
[1727708686518,6.3694,157.0,156.95,6.3713]
[1727708688140,6.3694,157.0,156.96,10.2288946]
[1727708688925,6.3694,157.0,156.97,1.27379368]
[1727708689134,6.3689,157.02,156.97,1.27379368]
[1727708689432,6.3691,157.01,156.97,1.27379368]
[1727708689827,6.3691,157.01,156.97,7.64439368]
[1727708690024,6.3691,157.01,156.96,16.5997946]
[1727708691032,22.1179,157.03,156.99,6.3697]
[1727708691252,22.1179,157.03,157.0,1.27358941]
[1727708691610,15.7497,157.03,156.99,6.3697]
[1727708692210,7.215578,157.04,156.99,6.3697]
[1727708692609,0.847778,157.04,156.98,10.2288946]
[1727708692819,0.847778,157.04,157.0,6.3693]
[1727708693037,0.847778,157.04,157.01,1.27343061]
[1727708693238,0.847778,157.04,157.03,6.3682]
[1727708694941,0.847778,157.04,157.03,7.64148055]
[1727708695114,0.847778,157.04,157.03,6.3682]
[1727708696018,0.847778,157.04,157.0,6.3693]
[1727708696221,6.3684,157.03,156.98,22.2949]
[1727708696417,0.847778,157.04,156.99,30.0]
[1727708696617,7.215578,157.04,156.99,36.3697]
[1727708696843,6.3682,157.03,156.99,36.3697]
[1727708697645,0.847778,157.04,156.99,30.0]
[1727708697937,16.446678,157.04,156.98,22.2951]
[1727708698117,6.3682,157.03,156.99,6.3696]
[1727708699742,16.446678,157.04,156.95,6.4527]
[1727708699931,16.446678,157.04,156.97,6.3705]
[1727708700253,16.446678,157.04,156.95,22.3809]
[1727708700254,6.3693,157.01,156.95,22.3809]
[1727708700537,16.446678,157.04,156.95,15.9282]
[1727708700722,6.3689,157.02,156.97,6.3702]
[1727708700918,32.366478,157.04,156.95,22.2996]
[1727708701137,6.3697,157.0,156.95,22.2996]
[1727708701346,32.366478,157.04,156.95,22.2996]
[1727708701527,6.3699,156.99,156.95,22.2996]
[1727708701731,1.5876074,157.03,156.95,15.9282]
[1727708702351,6.3698,156.99,156.95,22.2996]
[1727708702643,32.366478,157.04,156.95,22.2996]
[1727708702840,1.5876074,157.03,156.95,22.2996]
[1727708703041,6.3699,156.99,156.95,15.9282]
[1727708703226,6.3702,156.98,156.93,6.3719]
[1727708703434,6.3702,156.98,156.92,15.9311]
[1727708703634,16.446678,157.04,156.93,1.27399821]
[1727708703835,16.446678,157.04,156.98,15.9249]
[1727708704039,16.446678,157.04,156.96,15.96512759]
[1727708704231,16.446678,157.04,157.01,6.3687]
[1727708705117,16.446678,157.04,157.0,15.9229]
[1727708705320,16.446678,157.04,156.96,15.96512759]
[1727708705321,16.446678,157.04,156.99,6.3697]
[1727708705541,22.814578,157.04,156.99,6.3697]
[1727708706345,6.3685,157.03,156.98,6.3702]
[1727708706651,6.3682,157.03,156.98,6.3702]
[1727708706949,22.814478,157.04,156.99,6.3696]
[1727708707449,16.446678,157.04,157.0,7.64256671]
[1727708707749,0.847778,157.04,157.02,6.3685]
[1727708707926,0.847778,157.04,157.03,1.27340325]
[1727708708247,0.847778,157.04,157.01,6.3689]
[1727708709334,0.847778,157.04,157.02,1.27340574]
[1727708709533,0.847778,157.04,157.03,6.3682]
[1727708711045,0.847778,157.04,157.03,7.6414082]
[1727708711946,0.847778,157.04,157.03,6.3682]
[1727708713341,0.847778,157.04,157.03,7.64142056]
[1727708713532,0.847778,157.04,157.03,36.3682]
[1727708716050,0.847778,157.04,157.03,37.64128399]
[1727708716346,0.847778,157.04,157.03,36.3682]
[1727708719149,0.847778,157.04,157.03,37.64128395]
[1727708719347,0.847778,157.04,157.03,36.3682]
[1727708721929,0.847778,157.04,157.03,6.3682]
[1727708724557,15.9432,157.12,157.03,6.3682]
[1727708724558,15.9432,157.12,157.1,6.3652]
[1727708724854,15.9432,157.12,157.11,1.27282853]
[1727708725038,15.9432,157.12,157.11,7.63772853]
[1727708725551,15.9432,157.12,157.1,6.3652]
[1727708734674,22.3078,157.12,157.09,15.914]
[1727708734846,1.5876074,157.11,157.06,15.9166]
[1727708735167,6.3657,157.1,157.06,15.9166]
[1727708735345,6.3657,157.09,157.06,15.9166]
[1727708735852,6.3657,157.09,157.04,6.3676]
[1727708736051,6.3657,157.09,157.05,6.3673]
[1727708736460,1.5876074,157.11,157.04,6.3676]
[1727708736840,1.5876074,157.11,157.03,15.92]
[1727708737037,1.5876074,157.11,156.87,308.67077904]
[1727708737038,22.4558,157.1,157.0,15.923]
[1727708737240,6.367,157.06,157.0,22.292]
[1727708738065,6.367,157.06,157.01,6.3688]
[1727708739563,6.3667,157.07,157.02,6.3685]
[1727708740662,38.3696,157.1,156.98,6.63988077]
[1727708740866,6.3662,157.08,157.04,6.3676]
[1727708741569,1.5876074,157.07,157.02,15.921]
[1727708741765,6.3684,157.03,156.99,15.9239]
[1727708742066,7.9565074,157.02,156.97,6.3705]
[1727708742240,15.8299,157.01,156.97,6.3705]
[1727708742439,15.8299,157.01,156.96,22.2979]
[1727708742440,1.5876074,157.0,156.96,22.2979]
[1727708742674,1.5876074,157.0,156.94,4.1101092]
[1727708742840,1.5876074,157.0,156.94,10.4818092]
[1727708743039,6.3706,156.97,156.94,4.1101092]
[1727708743266,6.3699,156.99,156.94,6.3717]
[1727708743472,6.3694,157.0,156.95,6.3711]
[1727708744055,15.8299,157.01,156.96,17.20153453]
[1727708744455,15.8299,157.01,156.98,6.3701]
[1727708745455,15.8299,157.01,156.98,7.64396866]
[1727708745765,15.8299,157.01,156.98,6.3701]
[1727708746660,15.8299,157.01,156.96,15.9275]
[1727708746852,15.8299,157.01,156.98,15.9246]
[1727708749372,15.8299,157.01,156.97,6.3705]